bitfinex/quotes_ETHUSD_20250415
["timestamp","ask_amount","ask_price","bid_price","bid_amount"]
[1744728892337,6.15849,1623.8,1623.5,6.15942]
[1744728892513,6.15849,1623.8,1623.5,14.38189714]
[1744728892720,6.15862,1623.8,1623.5,2.06309714]
[1744728892939,6.15885,1623.7,1623.5,2.06309714]
[1744728893806,6.15954,1623.5,1623.3,1.5531]
[1744728894443,6.15952,1623.6,1623.2,6.16052]
[1744728894609,6.15952,1623.6,1623.3,6.16024]
[1744728895047,6.15931,1623.6,1623.3,6.16024]
[1744728895209,12.31861,1623.6,1623.3,6.16024]
[1744728895409,6.1593,1623.6,1623.2,12.78230963]
[1744728895648,1.5283,1623.7,1623.4,6.15972]
[1744728895944,12.31795,1623.7,1623.4,6.15972]
[1744728896243,6.15887,1623.7,1623.4,12.3195]
[1744728896443,6.1592,1623.6,1623.3,6.16019]
[1744728896805,12.31798,1623.7,1623.3,12.32035]
[1744728897051,12.31778,1623.7,1623.4,7.391865]
[1744728897252,6.15916,1623.6,1623.3,6.16016]
[1744728897828,6.15916,1623.6,1623.3,12.32034]
[1744728898229,6.15916,1623.6,1623.3,12.32033]
[1744728898931,6.15888,1623.7,1623.4,6.15969]
[1744728899115,12.31749,1623.8,1623.4,13.90588]
[1744728899317,7.77773,1623.9,1623.5,12.31881]
[1744728899551,6.15823,1623.9,1623.6,6.15901]
[1744728899764,12.31644,1623.9,1623.6,6.15901]
[1744728900066,12.31641,1623.9,1623.6,6.15901]
[1744728900231,6.15771,1624.0,1623.6,1.231845]
[1744728900446,1.5346,1624.1,1623.8,6.1582]
[1744728900447,6.15738,1624.1,1623.8,6.1582]
[1744728900755,6.15778,1624.0,1623.7,7.76983]
[1744728900956,6.15792,1624.0,1623.7,1.6112]
[1744728901255,12.31477,1624.1,1623.7,13.92862]
[1744728901624,12.31478,1624.1,1623.7,13.92852]
[1744728901819,6.15764,1624.0,1623.7,9.162702]
[1744728902028,6.15735,1624.1,1623.8,6.15818]
[1744728902345,6.15737,1624.1,1623.8,6.15822]
[1744728902541,6.15775,1624.0,1623.7,3.004052]
[1744728902741,6.15687,1624.2,1623.7,9.162762]
[1744728902742,6.15733,1624.1,1623.7,9.162762]
[1744728903054,6.15756,1624.1,1623.7,9.162672]
[1744728903223,6.15764,1624.0,1623.7,9.62832747]
[1744728903665,12.31542,1624.0,1623.7,9.62832747]
[1744728903862,6.15764,1624.0,1623.7,9.62827747]
[1744728904560,12.31488,1624.1,1623.8,6.15827]
[1744728904766,1.5821,1624.3,1624.0,6.15728]
[1744728904966,6.15629,1624.4,1624.1,6.15716]
[1744728905264,6.15699,1624.2,1624.0,1.5414]
[1744728905486,12.31406,1624.2,1624.0,1.5414]
[1744728905840,1.5223,1624.5,1624.0,1.5414]
[1744728906041,6.15673,1624.3,1624.0,1.5414]
[1744728906247,6.15703,1624.2,1624.0,1.5414]
[1744728906795,6.15736,1624.1,1623.8,9.27838175]
[1744728906946,6.15703,1624.2,1623.9,7.69938]
[1744728907150,5.607636,1624.5,1623.9,7.69938]
[1744728907151,6.15596,1624.5,1624.0,7.76050243]
[1744728907375,6.15623,1624.4,1624.1,6.15712]
[1744728907573,14.22508,1624.7,1624.3,1.5414]
[1744728907574,14.22515,1624.7,1624.3,1.5414]
[1744728907786,7.67689,1624.9,1624.4,6.21736058]
[1744728907787,12.30942,1624.8,1624.4,6.21736058]
[1744728908005,7.67665,1624.9,1624.6,6.15535]
[1744728908168,21.84128628,1625.1,1624.7,6.1547]
[1744728908377,6.15429,1624.9,1624.6,7.69664]
[1744728908687,12.30869,1624.9,1624.6,2.926616]
[1744728909004,6.15429,1624.9,1624.6,9.081846]
[1744728909202,6.15388,1625.0,1624.7,6.1548]
[1744728909405,6.15399,1625.0,1624.6,9.081856]
[1744728909703,12.30818,1625.0,1624.6,15.69977962]
[1744728909897,6.15399,1625.0,1624.7,7.72487796]
[1744728910100,10.19477628,1625.1,1624.7,1.56997796]
[1744728910402,10.19477628,1625.1,1624.8,7.69589]
[1744728910573,16.34845628,1625.1,1624.8,1.5414]
[1744728910778,6.1541,1625.0,1624.8,1.5414]
[1744728911761,6.15356,1625.1,1624.8,1.5414]
[1744728912106,0.05,1625.4,1625.1,6.15328]
[1744728912308,0.05,1625.4,1625.2,1.4885]
[1744728912660,0.05,1625.4,1625.3,6.15271]
[1744728913060,0.05,1625.4,1625.2,13.79438]
[1744728913504,0.05,1625.4,1625.2,7.64144]
[1744728913687,0.05,1625.4,1625.3,0.764144]
[1744728914078,0.05,1625.4,1625.2,1.4885]
[1744728914280,0.05,1625.4,1625.2,13.79451]
[1744728914620,0.05,1625.4,1625.2,13.79439]
[1744728914766,6.15271,1625.3,1625.2,1.4885]
[1744728914966,12.35511,1625.4,1625.2,1.4885]
[1744728915163,6.20245,1625.4,1625.2,1.4885]
[1744728915367,0.05,1625.4,1625.2,8.51283541]
[1744728915767,6.20256,1625.4,1625.2,2.35999541]
[1744728916476,6.15298,1625.3,1625.0,9.603]
[1744728916677,6.15321,1625.2,1625.0,9.603]
[1744728916879,6.15346,1625.1,1625.0,9.603]
[1744728917098,12.30645,1625.2,1625.0,9.603]
[1744728917298,6.15346,1625.1,1625.0,9.603]
[1744728917704,6.15346,1625.1,1625.0,8.066]
[1744728917909,6.15402,1625.0,1624.6,6.15523]
[1744728918216,6.15525,1624.7,1624.5,1.4922]
[1744728918376,6.15531,1624.7,1624.3,8.09801223]
[1744728918575,12.31103,1624.6,1624.3,8.09801223]
[1744728918775,6.15586,1624.5,1624.3,1.94166223]
[1744728919136,6.15611,1624.4,1624.3,1.4869]
[1744728919309,6.15611,1624.4,1624.1,14.18623]
[1744728919310,12.31247,1624.4,1624.1,9.6488]
[1744728919504,6.15611,1624.4,1624.1,11.35692288]
[1744728919704,6.15537,1624.6,1624.2,6.21829291]
[1744728920218,6.15464,1624.8,1624.4,6.15597]
[1744728920460,12.30951,1624.8,1624.5,1.5844]
[1744728920571,6.15464,1624.8,1624.5,1.5844]
[1744728920772,6.15464,1624.8,1624.5,2.974034]
[1744728920773,12.30942,1624.8,1624.5,2.974034]
[1744728921174,6.15501,1624.7,1624.5,2.974034]
[1744728921373,12.31034,1624.7,1624.5,1.5844]
[1744728921818,6.15501,1624.7,1624.5,1.5844]
[1744728922215,6.15386,1625.0,1624.3,1.4635]
[1744728922216,6.15566,1624.6,1624.3,1.4635]
[1744728922511,12.31186,1624.5,1624.3,1.4635]
[1744728922671,12.31196,1624.5,1624.3,1.4635]
[1744728922872,6.15593,1624.5,1624.3,1.4635]
[1744728923710,12.31184,1624.5,1624.3,1.4635]
[1744728923910,12.31181,1624.5,1624.3,1.4635]
[1744728924072,1.5638,1624.7,1624.3,2.22553]
[1744728924274,12.31133,1624.6,1624.3,1.4635]
[1744728924475,6.15561,1624.6,1624.3,1.4635]
[1744728924789,6.15506,1624.7,1624.4,6.15598]
[1744728925097,6.15506,1624.7,1624.3,7.68152735]
[1744728925299,12.31116,1624.6,1624.3,1.4635]
[1744728925504,6.15471,1624.8,1624.5,6.1556]
[1744728925718,6.15471,1624.8,1624.5,6.77116]
[1744728925920,6.15471,1624.8,1624.5,12.98830863]
[1744728926090,6.15471,1624.8,1624.5,12.92676]
[1744728926292,6.15471,1624.8,1624.5,6.77116]
[1744728926491,12.3089,1624.9,1624.6,6.15532]
[1744728926717,6.15439,1624.9,1624.6,6.21686692]
[1744728926917,6.15439,1624.9,1624.6,1.36034861]
[1744728927130,6.15498,1624.8,1624.4,6.15601]
[1744728927283,6.1551,1624.7,1624.4,6.15601]
[1744728928282,6.15467,1624.8,1624.5,6.1556]
[1744728928826,6.15508,1624.7,1624.4,12.31212]
[1744728929019,6.15467,1624.8,1624.5,6.15564]
[1744728929323,6.15467,1624.8,1624.4,12.31212]
[1744728929511,12.30962,1624.8,1624.4,14.27868341]
[1744728929818,12.30962,1624.8,1624.5,6.15568]
[1744728930022,6.15467,1624.8,1624.5,6.15568]
[1744728930523,6.15498,1624.7,1624.4,8.12253341]
[1744728930688,6.15498,1624.7,1624.4,14.27851341]
[1744728931221,6.15467,1624.8,1624.4,8.12253341]
[1744728931385,12.3096,1624.8,1624.5,6.15573]
[1744728931585,6.15467,1624.8,1624.5,6.15573]
[1744728931799,6.15396,1625.0,1624.6,6.21682883]
[1744728931998,12.30816,1625.0,1624.6,13.97790883]
[1744728932355,6.15325,1625.2,1624.9,6.15386]
[1744728932666,6.15394,1625.0,1624.7,6.15496]
[1744728932941,6.15394,1625.0,1624.7,12.30982]
[1744728933239,7.70718,1625.3,1624.6,16.25546371]
[1744728933240,6.15445,1624.9,1624.6,16.25546371]
[1744728933648,6.15427,1624.9,1624.6,16.25546371]
[1744728933958,6.15395,1625.0,1624.7,6.15496]
[1744728934258,6.15395,1625.0,1624.6,22.41080371]
[1744728934408,6.15395,1625.0,1624.6,22.41078371]
[1744728934748,12.30719,1625.1,1624.7,12.3097]
[1744728935215,6.15394,1625.0,1624.7,6.15485]
[1744728935416,6.15394,1625.0,1624.7,12.30971]
[1744728935945,12.30815,1625.0,1624.7,6.15485]
[1744728936145,1.524,1624.8,1624.3,1.5935]
[1744728936305,6.15516,1624.7,1624.3,1.5935]
[1744728936505,6.15434,1624.9,1624.3,7.74997]
[1744728936743,6.15481,1624.8,1624.4,12.31191]
[1744728936947,12.30955,1624.8,1624.4,12.31191]
[1744728937131,12.30955,1624.8,1624.4,13.702451]
[1744728937328,6.15474,1624.8,1624.5,6.15568]
[1744728937533,6.15474,1624.8,1624.5,6.15564]
[1744728937845,6.15447,1624.9,1624.5,0.06154607]
[1744728938033,6.15443,1624.9,1624.6,6.1553]
[1744728938344,12.3089,1624.9,1624.6,6.1553]
[1744728938544,12.3089,1624.9,1624.5,12.31132]
[1744728938846,6.15462,1624.8,1624.5,7.386752]
[1744728939146,1.524,1625.0,1624.5,1.231132]
[1744728939363,6.15386,1625.0,1624.7,12.3097]
[1744728939563,6.15386,1625.0,1624.7,6.15485]
[1744728939766,6.15356,1625.1,1624.6,1.5935]
[1744728940063,12.3072,1625.1,1624.8,6.15451]
[1744728940267,6.15356,1625.1,1624.8,12.309]
[1744728940429,6.15271,1625.3,1624.9,7.38499]
[1744728940625,0.05,1625.4,1625.0,1.52643615]
[1744728940829,0.05,1625.4,1625.3,6.15271]
[1744728941042,0.05,1625.4,1625.2,6.15283]
[1744728941325,0.05,1625.4,1625.3,6.15271]
[1744728941545,0.05,1625.4,1625.3,7.61761]
[1744728941965,0.05,1625.4,1625.3,2.841944]
[1744728942342,0.05,1625.4,1625.3,8.994654]
[1744728944177,0.05,1625.4,1625.3,12.05617148]
[1744728944395,1e-05,1625.4,1625.3,12.544654]
[1744728944557,1e-05,1625.4,1625.3,11.994654]
[1744728945866,1e-05,1625.4,1625.3,9.45059816]
[1744728946652,1e-05,1625.4,1625.3,9.51211001]
[1744728947280,1e-05,1625.4,1625.3,9.45059816]
[1744728947486,1e-05,1625.4,1625.3,9.51211002]
[1744728947794,1e-05,1625.4,1625.3,12.51211002]
[1744728948001,1e-05,1625.4,1625.3,13.00059816]
[1744728951202,0.4054,1625.7,1625.6,10.69967]
[1744728951370,0.4054,1625.7,1625.6,18.75116428]
[1744728951700,0.05,1626.4,1626.3,6.14892]
[1744728951914,0.05,1626.4,1626.3,6.763812]
[1744728952091,0.05,1626.4,1626.3,6.82529184]
[1744728952257,0.05,1626.4,1626.3,6.763812]
[1744728952460,0.05,1626.4,1626.2,6.14913]
[1744728952689,6.19858,1626.4,1626.1,12.29914]
[1744728952884,0.05,1626.4,1626.1,12.29912]
[1744728953259,0.05,1626.4,1626.2,6.14919]
[1744728953497,0.05,1626.4,1626.2,6.14914]
[1744728953701,0.05,1626.4,1626.2,12.29833]
[1744728953999,0.05,1626.4,1626.2,6.14914]
[1744728954690,0.05,1626.4,1626.2,12.29833]
[1744728957174,1e-05,1626.4,1626.3,14.04402842]
[1744728957914,1e-05,1626.4,1626.3,14.59402842]
[1744728958072,7.7215,1627.2,1626.9,6.14656]
[1744728958400,7.7215,1627.2,1626.8,6.1469]
[1744728958606,0.4554014,1627.4,1626.7,4.92115961]
[1744728958811,6.6002714,1627.4,1627.0,6.14611]
[1744728958973,12.7453514,1627.4,1627.0,12.29225]
[1744728959177,12.7453514,1627.4,1627.0,7.375335]
[1744728959178,6.14523,1627.3,1627.0,7.375335]
[1744728959376,6.6003314,1627.4,1627.1,6.14577]
[1744728959588,6.6003314,1627.4,1627.0,6.14606]
[1744728959901,12.7454414,1627.4,1627.1,6.14589]
[1744728960201,6.14526,1627.3,1627.0,6.14606]
[1744728960364,6.6003314,1627.4,1627.1,6.14586]
[1744728960569,12.7452814,1627.4,1627.0,12.29248]
[1744728960780,6.6003314,1627.4,1627.1,6.14583]
[1744728960977,6.6003314,1627.4,1627.0,7.375408]
[1744728961181,6.6003314,1627.4,1626.7,18.79817366]
[1744728961182,6.14525,1627.3,1626.9,12.29312]
[1744728961476,1.5322,1627.2,1626.3,11.12921842]
[1744728961682,7.67915,1626.9,1626.5,6.14804]
[1744728962002,6.14739,1626.8,1626.4,6.14843]
[1744728962202,6.1475,1626.7,1626.4,6.14843]
[1744728962564,6.1475,1626.7,1626.4,12.29684]
[1744728962759,7.67895,1626.9,1626.5,6.7701931]
[1744728962959,1.5322,1626.9,1626.5,0.6220831]
[1744728963202,1.5322,1626.9,1626.7,6.14721]
[1744728963378,7.61774,1627.1,1626.8,6.14691]
[1744728963577,1.4718,1627.1,1626.9,6.14662]
[1744728963773,1.4718,1627.1,1626.8,12.29382]
[1744728964009,7.6177,1627.1,1626.8,12.29383]
[1744728964160,7.6177,1627.1,1626.8,13.523213]
[1744728964364,7.6177,1627.1,1626.8,1.229383]
[1744728964564,13.76383,1627.1,1626.8,1.229383]
[1744728964767,6.14694,1626.9,1626.5,12.29611]
[1744728965003,7.6177,1627.1,1626.5,6.14803]
[1744728965207,7.6177,1627.1,1626.4,1.4698]
[1744728965502,7.72407,1626.7,1626.3,6.14879]
[1744728965676,6.14793,1626.6,1626.3,6.14879]
[1744728965875,6.14793,1626.6,1626.3,7.57194402]
[1744728966405,6.14793,1626.6,1626.3,1.42315402]
[1744728966573,6.14827,1626.5,1626.2,8.08270024]
[1744728966768,6.14827,1626.5,1626.2,7.61897]
[1744728966973,6.14827,1626.5,1626.2,6.14917]
[1744728967176,6.14781,1626.6,1626.3,6.1488]
[1744728967412,1.5766,1626.7,1626.4,6.14823]
[1744728967707,7.72415,1626.7,1626.4,6.763053]
[1744728968014,6.14892,1626.3,1625.4,7.65230982]
[1744728968220,1.4821,1626.2,1625.6,6.1512]
[1744728968377,6.15021,1626.0,1625.6,6.1512]
[1744728968576,6.15006,1626.0,1625.4,14.05554785]
[1744728968796,6.15102,1625.8,1625.5,1.40555479]
[1744728969113,6.151,1625.8,1625.5,7.55745479]
[1744728969318,6.15084,1625.8,1625.5,7.55738479]
[1744728969473,6.15135,1625.7,1625.5,1.40555479]
[1744728969671,6.15135,1625.7,1625.4,6.60312803]
[1744728969984,6.15163,1625.6,1625.3,7.71116]
[1744728970198,6.15198,1625.5,1625.3,1.5588]
[1744728970382,6.15198,1625.5,1625.2,6.15292]
[1744728970707,12.30416,1625.5,1625.2,6.15292]
[1744728970906,12.30416,1625.5,1625.2,1.573052]
[1744728970907,7.76948,1625.5,1625.2,1.573052]
[1744728971272,7.76948,1625.5,1625.2,7.726092]
[1744728971471,1.6172,1625.7,1625.2,1.573052]
[1744728971703,6.15084,1625.8,1625.5,6.15177]
[1744728971971,12.30196,1625.8,1625.4,12.30435]
[1744728972169,12.30189,1625.8,1625.5,1.230435]
[1744728972610,6.15176,1625.6,1625.3,3.0]
[1744728973018,6.15176,1625.6,1625.3,9.15269]
[1744728973318,6.15112,1625.8,1625.2,1.573052]
[1744728973475,6.15317,1625.2,1624.9,1.5926]
[1744728973674,6.15278,1625.3,1624.7,9.5796]
[1744728973974,12.30578,1625.3,1624.9,3.0]
[1744728974173,6.15236,1625.4,1624.9,6.1542]
[1744728974371,1.6172,1625.8,1625.2,6.15304]
[1744728974692,6.15121,1625.7,1625.2,12.30602]
[1744728974896,1.476,1626.0,1625.6,6.15138]
[1744728975110,7.62608,1626.0,1625.7,0.615138]
[1744728975320,7.62608,1626.0,1625.6,9.15155]
[1744728975797,6.14977,1626.1,1625.6,16.83359]
[1744728975977,6.15034,1626.0,1625.6,10.68204]
[1744728976178,6.15046,1625.9,1625.6,4.5306]
[1744728976695,6.15103,1625.8,1625.4,3.0]
[1744728976941,6.15169,1625.6,1625.3,3.0]
[1744728977101,6.15169,1625.6,1625.2,15.63373]
[1744728977302,6.15198,1625.5,1625.2,15.63373]
[1744728977597,6.15233,1625.4,1625.2,9.4808]
[1744728977797,6.15201,1625.5,1625.2,7.987]
[1744728978043,6.15201,1625.5,1625.2,14.1319596]
[1744728978044,12.30418,1625.5,1625.2,14.1319596]
[1744728978239,6.15201,1625.5,1625.2,14.1319596]
[1744728978441,6.15233,1625.4,1625.2,14.1319596]
[1744728978617,6.15271,1625.3,1625.2,17.1319596]
[1744728978804,6.15233,1625.4,1625.2,17.1319596]
[1744728979342,6.15271,1625.3,1625.2,7.987]
[1744728979640,6.15322,1625.2,1625.0,1.4938]
[1744728980516,6.15278,1625.3,1625.0,4.4938]
[1744728980833,12.30567,1625.3,1625.0,4.4938]
[1744728981029,6.15321,1625.2,1625.0,4.4938]
[1744728981339,12.30566,1625.3,1625.0,11.712423]
[1744728981542,6.15312,1625.2,1625.0,5.558593]
[1744728981745,6.15312,1625.2,1625.0,1.064793]
[1744728981932,6.15346,1625.2,1624.9,3.0]
[1744728982252,7.6246,1625.6,1625.2,9.15296]
[1744728982542,6.1525,1625.4,1625.1,4.4938]
[1744728982715,1.4729,1625.3,1624.8,0.95796]
[1744728982916,6.15438,1624.9,1624.5,1.4938]
[1744728983155,6.15477,1624.8,1624.5,1.4938]
[1744728983350,2.23544,1625.3,1624.6,6.15524]
[1744728983547,12.30813,1625.0,1624.6,3.0]
[1744728983709,6.15356,1625.1,1624.6,3.0]
[1744728983909,6.15463,1624.8,1624.5,4.9595511]
[1744728984152,6.15463,1624.8,1624.5,1.9595511]
[1744728984309,12.3095,1624.8,1624.5,1.9595511]
[1744728984524,12.3095,1624.8,1624.6,3.0]
[1744728984827,6.15432,1624.9,1624.6,3.0]
[1744728985189,6.1541,1625.0,1624.6,9.15524]
[1744728985338,6.1541,1625.0,1624.6,15.31048]
[1744728985542,6.15454,1624.9,1624.6,3.0]
[1744728985772,12.30908,1624.9,1624.6,4.67237552]
[1744728986266,12.30951,1624.8,1624.6,4.67237552]
[1744728986568,6.1546,1624.8,1624.6,4.67237552]
[1744728987530,6.15308,1625.2,1624.6,10.82769552]
[1744728987872,12.30874,1624.9,1624.6,4.67237552]
[1744728988024,6.15464,1624.8,1624.6,4.67237552]
[1744728988486,6.15498,1624.7,1624.6,4.67237552]
[1744728988771,6.15464,1624.8,1624.6,4.67237552]
[1744728988930,12.3094,1624.8,1624.6,4.67237552]
[1744728989132,6.15464,1624.8,1624.6,4.67237552]
[1744728989560,6.15426,1624.9,1624.6,4.67237552]
[1744728989870,6.15465,1624.8,1624.7,0.46723755]
[1744728990498,12.30883,1624.9,1624.7,0.46723755]
[1744728990795,6.1546,1624.8,1624.7,0.46723755]
[1744728991370,6.1546,1624.8,1624.6,4.67237552]
[1744728993203,6.15471,1624.8,1624.6,4.67237552]
[1744728993408,6.15471,1624.8,1624.1,0.05]
[1744728993409,6.15536,1624.6,1624.1,0.05]
[1744728993608,6.15606,1624.5,1624.1,0.05]
[1744728993764,1.467,1624.7,1624.1,0.05]
[1744728993966,6.15536,1624.6,1624.1,0.05]
[1744728994303,6.15687,1624.2,1624.1,0.05]
[1744728997714,7.69057,1624.2,1624.1,0.05]
[1744728998418,6.15938,1623.6,1623.4,1.5704]
[1744728998712,12.31871,1623.6,1623.4,1.5704]
[1744728998874,6.15933,1623.6,1623.4,1.5704]
[1744728999276,1.5337,1623.9,1623.4,1.5704]
[1744728999543,6.15777,1624.0,1623.6,9.15904]
[1744728999743,6.15739,1624.1,1623.7,8.66183038]
[1744728999917,12.3149,1624.1,1623.7,2.50328038]
[1744729000119,12.3149,1624.1,1623.7,2.441704]
[1744729000315,6.15692,1624.2,1623.8,3.0]
[1744729000534,13.834,1624.3,1623.9,0.061574]
[1744729000841,12.31244,1624.4,1623.9,0.9219844]
[1744729001038,12.31343,1624.3,1623.8,9.15827]
[1744729001242,6.15662,1624.3,1623.8,9.15827]
[1744729001406,6.15545,1624.6,1624.2,1.581]
[1744729001600,6.15596,1624.5,1624.2,1.581]
[1744729001803,6.15538,1624.6,1624.2,1.581]
[1744729001804,12.311,1624.6,1624.2,1.581]
[1744729002039,6.1551,1624.7,1624.2,1.581]
[1744729002246,6.1567,1624.3,1624.0,1.4695]
[1744729002419,6.15698,1624.2,1624.0,1.4695]
[1744729002947,13.83481,1624.4,1624.0,4.4695]
[1744729003143,1.5222,1624.4,1624.0,1.4695]
[1744729003441,12.31346,1624.3,1624.0,1.4695]
[1744729003647,1.5222,1624.4,1623.8,1.6153]
[1744729003951,6.15801,1623.9,1623.8,4.6153]
[1744729004251,6.15839,1623.8,1623.3,6.16018]
[1744729004402,7.64745,1624.0,1623.4,1.6153]
[1744729004403,6.15886,1623.7,1623.4,1.6153]
[1744729004607,6.15919,1623.6,1623.4,4.6153]
[1744729004915,6.1597,1623.5,1623.3,7.959]
[1744729005940,12.31941,1623.5,1623.3,7.959]
[1744729006444,6.1597,1623.5,1623.3,7.959]
[1744729006617,1.4898,1623.7,1623.2,1.6153]
[1744729006950,1.4898,1623.7,1623.1,48.04]
[1744729006951,6.16067,1623.2,1623.1,0.05]
[1744729008649,7.392766,1623.2,1623.1,0.05]
[1744729009006,8.978466,1623.2,1623.1,0.05]
[1744729009632,0.55,1623.1,1622.4,9.5344]
[1744729009911,6.16242,1622.8,1622.4,9.5344]
[1744729010108,6.16173,1623.0,1622.5,0.06162734]
[1744729010410,12.32564,1622.7,1622.4,15.6793596]
[1744729010755,6.16309,1622.6,1622.4,9.5344]
[1744729010938,6.16332,1622.5,1622.4,9.5344]
[1744729011246,6.16446,1622.2,1622.1,0.05]
[1744729012931,7.64684,1622.4,1622.1,0.05]
[1744729013149,6.16344,1622.5,1622.2,1.5185]
[1744729013442,6.16352,1622.5,1622.2,2.291823]
[1744729013751,6.16388,1622.4,1622.2,1.5185]
[1744729014049,12.32777,1622.4,1622.2,1.5185]
[1744729014211,6.16378,1622.4,1622.1,0.05]
[1744729014411,6.16367,1622.5,1622.1,0.05]
[1744729014641,12.32792,1622.4,1622.1,0.05]
[1744729014979,6.16424,1622.3,1622.1,0.05]
[1744729015781,6.16424,1622.3,1622.1,0.11164036]
[1744729015938,6.16371,1622.4,1622.1,0.11164036]
[1744729016144,6.16338,1622.5,1622.2,3.0]
[1744729016548,6.16299,1622.6,1622.3,3.06163315]
[1744729016841,1.5883,1622.8,1622.1,1.92157604]
[1744729016842,6.1637,1622.4,1622.1,1.92157604]
[1744729017140,1.5883,1622.8,1622.1,3.05]
[1744729017141,6.16366,1622.5,1622.1,3.05]
[1744729017340,6.16373,1622.4,1622.1,3.05]
[1744729017576,6.16438,1622.3,1622.1,3.05]
[1744729017735,6.16385,1622.4,1622.1,3.05]
[1744729017940,1.5825,1622.7,1622.2,6.16432]
[1744729018154,12.32625,1622.6,1622.2,6.16432]
[1744729018482,6.16335,1622.5,1622.2,6.16432]
[1744729018639,12.3264,1622.6,1622.2,12.32867]
[1744729018834,1.5825,1622.7,1622.1,3.05]
[1744729019179,6.62282981,1622.8,1622.1,0.05]
[1744729019180,6.16446,1622.2,1622.1,0.05]
[1744729019351,7.547367,1622.2,1622.1,0.05]
[1744729019776,13.82887,1622.3,1622.1,0.05]
[1744729019971,6.16376,1622.4,1622.1,0.05]
[1744729020298,7.63835,1622.5,1622.1,6.21482]
[1744729020471,1.4749,1622.7,1622.1,0.05]
[1744729020670,9.16209,1622.9,1622.5,6.16318]
[1744729020671,6.16192,1622.9,1622.5,6.16318]
[1744729020886,6.16206,1622.9,1622.5,6.779498]
[1744729021060,6.16192,1622.9,1622.6,6.16261]
[1744729021261,1.232096,1623.2,1622.6,6.16261]
[1744729021262,7.66147,1623.2,1622.6,6.16261]
[1744729021484,12.32248,1623.1,1622.8,1.4962]
[1744729021674,6.16108,1623.1,1622.8,7.65825]
[1744729021889,1.5373,1623.4,1623.1,6.16078]
[1744729022205,6.16003,1623.4,1623.1,6.16078]
[1744729022498,6.15976,1623.5,1623.1,6.16086]
[1744729022702,6.16041,1623.3,1622.9,9.1616]
[1744729022899,6.16084,1623.2,1622.9,3.0]
[1744729023101,6.16037,1623.3,1622.9,10.9819857]
[1744729023467,6.15953,1623.5,1623.1,12.32192]
[1744729023766,7.69652,1623.6,1623.1,3.0]
[1744729023767,12.32007,1623.4,1623.1,3.0]
[1744729024073,6.16034,1623.3,1623.1,3.0]
[1744729024273,6.16034,1623.3,1622.9,7.9817857]
[1744729024467,12.32097,1623.3,1622.9,12.32319]
[1744729024668,6.1607,1623.2,1622.9,6.16154]
[1744729024908,6.16117,1623.1,1622.9,3.0]
[1744729025109,6.16035,1623.3,1622.9,9.22311061]
[1744729025407,6.15996,1623.4,1623.0,6.16121]
[1744729025717,12.32006,1623.4,1623.1,3.0]
[1744729025890,6.15996,1623.4,1623.1,3.0]
[1744729026094,6.15981,1623.5,1623.1,9.16096]
[1744729026275,6.16016,1623.4,1623.1,4.5778]
[1744729026684,6.16057,1623.3,1623.0,3.0]
[1744729026911,12.32122,1623.3,1623.0,3.0]
[1744729027095,12.3218,1623.2,1622.9,10.7598]
[1744729027911,6.16085,1623.2,1622.9,10.7598]
[1744729028506,6.15999,1623.4,1622.9,4.598]
[1744729028805,6.16031,1623.3,1623.0,12.32262]
[1744729028969,12.32082,1623.3,1623.0,6.16131]
[1744729029174,6.16031,1623.3,1623.0,6.16131]
[1744729029502,6.16005,1623.4,1623.0,6.16131]
[1744729029703,6.16039,1623.3,1623.0,1.692102]
[1744729029911,6.16069,1623.2,1622.9,10.75966]
[1744729030475,6.16075,1623.2,1622.9,10.75966]
[1744729030807,6.16189,1622.9,1622.7,9.4183]
[1744729031006,12.32393,1622.9,1622.7,9.4183]
[1744729031205,6.16155,1623.0,1622.7,9.4183]
[1744729031518,6.16256,1622.7,1622.3,1.4853]
[1744729031668,6.16395,1622.4,1622.1,1.5859]
[1744729031869,6.16446,1622.2,1622.1,0.05]
[1744729032113,12.32869,1622.3,1622.1,0.05]
[1744729032912,6.16446,1622.2,1622.1,0.05]
[1744729033285,9.450037,1622.2,1622.1,0.05]
[1744729033478,9.450037,1622.2,1622.1,0.16973561]
[1744729033815,8.900037,1622.2,1622.1,0.05]
[1744729034188,8.900037,1622.2,1622.1,0.1678734]
[1744729034382,8.900037,1622.2,1622.1,0.05]
[1744729034603,8.900037,1622.2,1622.1,0.16817542]
[1744729034934,9.450037,1622.2,1622.1,0.16852783]
[1744729035094,12.450037,1622.2,1622.1,0.16852783]
[1744729035290,12.450037,1622.2,1622.1,0.05]
[1744729035618,6.16658,1621.7,1621.4,4.5168]
[1744729035933,6.16658,1621.7,1621.4,6.678462]
[1744729036094,7.77603,1621.8,1621.4,12.845612]
[1744729036296,13.94224,1621.8,1621.4,12.845612]
[1744729036647,7.77603,1621.8,1621.4,12.845612]
[1744729037233,1.5319,1622.0,1621.4,6.678462]
[1744729037537,1.5319,1622.0,1621.5,0.12524714]
[1744729037730,6.16636,1621.7,1621.5,0.12524714]
[1744729037905,6.16605,1621.8,1621.5,0.12524714]
[1744729038239,6.16674,1621.6,1621.5,0.12524714]
[1744729038694,7.71685,1621.9,1621.5,6.29222714]
[1744729038892,6.16641,1621.7,1621.3,6.16781]
[1744729039132,1.5511,1621.9,1621.6,0.12504891]
[1744729039133,6.16604,1621.8,1621.6,0.12504891]